bitfinex/quotes_SOLUSD_20250429
["timestamp","ask_amount","ask_price","bid_price","bid_amount"]
[1745904281191,18.34770483,146.72,146.68,18.34770483]
[1745904283012,0.03,146.75,146.67,18.64964886]
[1745904283185,18.34770483,146.73,146.69,18.34770483]
[1745904283392,18.34770483,146.72,146.68,18.34770483]
[1745904285389,18.34770483,146.71,146.67,99.24770483]
[1745904285913,18.34770483,146.7,146.66,38.37550483]
[1745904286613,18.34770483,146.71,146.67,18.34770483]
[1745904287221,18.34770483,146.7,146.66,18.34770483]
[1745904287412,18.34770483,146.69,146.65,18.34770483]
[1745904288515,18.34770483,146.7,146.66,18.34770483]
[1745904292037,18.34770483,146.69,146.65,18.34770483]
[1745904293614,82.9,146.73,146.66,18.34770483]
[1745904293805,18.34770483,146.69,146.65,18.34770483]
[1745904294210,18.34770483,146.68,146.65,18.34770483]
[1745904295523,11.46181224,146.68,146.65,11.46181224]
[1745904295823,11.46181224,146.68,146.64,105.94181224]
[1745904296023,11.46181224,146.67,146.64,105.94181224]
[1745904297320,11.46181224,146.68,146.64,105.94181224]
[1745904297507,11.46181224,146.68,146.65,11.46181224]
[1745904298719,11.46181224,146.69,146.65,11.46181224]
[1745904299202,11.46181224,146.7,146.65,11.46181224]
[1745904299549,11.46181224,146.7,146.66,11.46181224]
[1745904300018,11.46181224,146.69,146.65,11.46181224]
[1745904300398,11.46181224,146.69,146.64,94.48]
[1745904300399,11.46181224,146.68,146.64,105.94181224]
[1745904303027,11.46181224,146.69,146.65,11.46181224]
[1745904303826,82.9,146.73,146.65,11.46181224]
[1745904304125,11.46181224,146.69,146.65,11.46181224]
[1745904305827,82.9,146.72,146.65,11.46181224]
[1745904306304,11.46181224,146.7,146.66,11.46181224]
[1745904306503,11.46181224,146.69,146.65,11.46181224]
[1745904309824,11.46181224,146.68,146.64,112.07920822]
[1745904310207,11.46181224,146.69,146.65,11.46181224]
[1745904310417,94.36181224,146.72,146.65,11.46181224]
[1745904310736,11.46181224,146.69,146.65,11.46181224]
[1745904313024,11.46181224,146.68,146.64,92.36181224]
[1745904314343,94.36181224,146.72,146.64,92.36181224]
[1745904314636,11.46181224,146.69,146.65,11.46181224]
[1745904317033,82.9,146.72,146.66,11.46181224]
[1745904317234,11.46181224,146.7,146.66,11.46181224]
[1745904317434,11.46181224,146.69,146.65,11.46181224]
[1745904318141,11.46181224,146.7,146.65,11.46181224]
[1745904319945,11.46181224,146.71,146.67,11.46181224]
[1745904320335,11.46181224,146.71,146.66,11.46181224]
[1745904320532,11.46181224,146.7,146.66,11.46181224]
[1745904322458,11.46181224,146.69,146.65,11.46181224]
[1745904323741,11.46181224,146.69,146.64,98.49928378]
[1745904323936,11.46181224,146.69,146.64,92.36181224]
[1745904324753,11.46181224,146.68,146.64,92.36181224]
[1745904324954,11.46181224,146.69,146.65,11.46181224]
[1745904326154,11.46181224,146.68,146.64,92.36181224]
[1745904328258,11.46181224,146.68,146.64,80.9]
[1745904328425,11.46181224,146.68,146.64,92.36181224]
[1745904331739,11.46181224,146.65,146.62,0.063]
[1745904331928,11.46181224,146.63,146.62,0.063]
[1745904332754,1.6202,146.68,146.62,0.063]
[1745904332968,11.46181224,146.63,146.62,0.063]
[1745904338638,13.07141224,146.63,146.62,0.063]
[1745904339660,31.7210611,146.63,146.59,0.063]
[1745904339865,11.46181224,146.6,146.59,0.063]
[1745904361582,7.34681372,146.6,146.59,0.063]
[1745904362361,101.54964886,146.59,146.56,0.063]
[1745904362565,7.34681372,146.57,146.53,0.063]
[1745904362892,7.34681372,146.55,146.53,0.063]
[1745904363479,11.48656728,146.55,146.53,0.063]
[1745904363881,82.9,146.57,146.53,0.063]
[1745904364070,11.48656728,146.55,146.53,0.063]
[1745904370694,11.48656728,146.56,146.53,0.063]
[1745904371998,11.48656728,146.56,146.53,6.20508694]
[1745904376799,11.48656728,146.57,146.53,17.69165422]
[1745904377004,82.9,146.6,146.53,6.20508694]
[1745904377197,11.51656728,146.62,146.58,11.48656728]
[1745904378607,11.48656728,146.61,146.57,11.48656728]
[1745904378995,0.03,146.62,146.57,11.48656728]
[1745904379285,11.48656728,146.61,146.57,11.48656728]
[1745904379489,11.51656728,146.62,146.58,11.48656728]
[1745904380089,11.51656728,146.62,146.58,17.62644467]
[1745904380287,11.51656728,146.62,146.59,11.48656728]
[1745904382805,11.51656728,146.62,146.58,17.62644467]
[1745904383402,11.48656728,146.59,146.54,87.10456003]
[1745904383606,11.48656728,146.57,146.54,0.063]
[1745904384105,11.48656728,146.56,146.54,0.063]
[1745904384692,11.48656728,146.58,146.54,17.69108054]
[1745904385698,11.48656728,146.59,146.55,11.48656728]
[1745904385882,11.48656728,146.6,146.56,11.48656728]
[1745904386682,11.51656728,146.62,146.58,11.48656728]
[1745904387091,11.48656728,146.61,146.57,11.48656728]
[1745904388493,11.48656728,146.61,146.57,17.62670116]
[1745904389221,0.03,146.62,146.58,11.48656728]
[1745904389407,11.51656728,146.62,146.58,11.48656728]
[1745904389587,11.51656728,146.62,146.58,17.6263827]
[1745904390214,0.03,146.62,146.6,11.48656728]
[1745904390422,0.03,146.62,146.59,11.48656728]
[1745904391794,0.03,146.62,146.59,17.62577789]
[1745904392913,0.03,146.62,146.6,11.48656728]
[1745904394114,0.03,146.62,146.59,11.48656728]
[1745904394489,11.51656728,146.62,146.59,17.62606884]
[1745904395093,0.03,146.62,146.59,17.62606884]
[1745904396519,11.51656728,146.62,146.58,19.71991315]
[1745904396703,11.48656728,146.61,146.58,13.58]
[1745904397016,11.48656728,146.6,146.58,13.58]
[1745904397210,11.48656728,146.61,146.58,13.58]
[1745904398615,11.51656728,146.62,146.58,31.20654257]
[1745904400889,11.51656728,146.62,146.58,25.06656728]
[1745904401090,0.03,146.62,146.58,25.06656728]
[1745904401316,0.03,146.62,146.59,11.48656728]
[1745904401992,11.51656728,146.62,146.58,25.06656728]
[1745904402414,11.51656728,146.62,146.58,13.58]
[1745904403329,11.51656728,146.62,146.58,19.71997928]
[1745904403624,11.51656728,146.62,146.58,31.20654656]
[1745904403915,11.51656728,146.62,146.58,25.06656728]
[1745904404097,11.48656728,146.61,146.58,13.58]
[1745904404644,0.03,146.62,146.58,11.48656728]
[1745904404825,11.48656728,146.6,146.55,19.7865]
[1745904404994,11.48656728,146.58,146.54,92.44956728]
[1745904405510,11.48656728,146.57,146.54,80.963]
[1745904405717,11.48656728,146.57,146.54,0.063]
[1745904405922,11.48656728,146.55,146.54,0.063]
[1745904414946,11.48656728,146.56,146.54,0.063]
[1745904416637,11.48656728,146.57,146.54,0.063]
[1745904417736,11.48656728,146.56,146.54,0.063]
[1745904417943,11.48656728,146.55,146.54,0.063]
[1745904427718,30.13621614,146.55,146.54,0.063]
[1745904428029,18.64964886,146.54,146.53,0.063]
[1745904428232,41.62278342,146.54,146.5,0.063]
[1745904428432,22.97313456,146.51,146.5,0.063]
[1745904434124,11.48656728,146.51,146.5,0.063]
[1745904438951,22.97313456,146.51,146.5,0.063]
[1745904439261,11.48656728,146.51,146.5,0.063]
[1745904440153,11.48656728,146.52,146.5,0.063]
[1745904440718,11.48656728,146.51,146.5,0.063]
[1745904442192,11.48656728,146.52,146.5,0.063]
[1745904442526,82.9,146.53,146.5,0.063]
[1745904442727,11.48656728,146.51,146.5,0.063]
[1745904443232,11.48656728,146.52,146.5,0.063]
[1745904443932,11.48656728,146.51,146.5,0.063]
[1745904444928,11.48656728,146.53,146.5,0.063]
[1745904445131,11.48656728,146.51,146.5,0.063]
[1745904445332,22.97313456,146.51,146.5,0.063]
[1745904446750,11.48656728,146.51,146.5,0.063]
[1745904455674,22.97313456,146.51,146.5,0.063]
[1745904457289,41.62278342,146.51,146.5,0.063]
[1745904458373,43.27858342,146.51,146.5,0.063]
[1745904464888,11.48656728,146.51,146.5,0.063]
[1745904465183,22.97313456,146.51,146.5,0.063]
[1745904468681,41.62278342,146.51,146.5,0.063]
[1745904471481,41.62278342,146.51,146.49,0.063]
[1745904471482,18.64964886,146.5,146.49,0.063]
[1745904471693,30.13621614,146.5,146.49,0.063]
[1745904474700,11.48656728,146.5,146.49,0.063]
[1745904474870,94.38656728,146.5,146.49,0.063]
[1745904484305,113.03621614,146.5,146.49,0.063]
[1745904486707,30.13621614,146.5,146.49,0.063]
[1745904487600,11.48656728,146.5,146.49,0.063]
[1745904491483,15.2083,146.55,146.49,0.063]
[1745904491679,11.48656728,146.51,146.49,0.063]
[1745904491897,11.48656728,146.52,146.49,0.063]
[1745904492187,11.48656728,146.51,146.49,0.063]
[1745904493204,11.48656728,146.52,146.49,0.063]
[1745904493410,11.48656728,146.53,146.49,11.54956728]
[1745904493709,11.48656728,146.54,146.5,11.48656728]
[1745904495892,11.48656728,146.54,146.49,11.54956728]
[1745904496215,11.48656728,146.53,146.49,0.063]
[1745904496416,11.48656728,146.52,146.49,0.063]
[1745904497991,11.48656728,146.53,146.49,0.063]
[1745904498508,11.48656728,146.52,146.49,0.063]
[1745904499098,11.48656728,146.51,146.49,0.063]
[1745904499495,11.48656728,146.52,146.49,0.063]
[1745904500216,82.9,146.55,146.49,0.063]
[1745904500217,11.48656728,146.51,146.49,0.063]
[1745904501703,11.48656728,146.52,146.49,0.063]
[1745904502319,11.48656728,146.51,146.49,0.063]
[1745904503401,11.48656728,146.5,146.49,0.063]
[1745904506624,96.48,146.54,146.49,0.063]
[1745904506808,11.48656728,146.5,146.49,0.063]
[1745904510722,82.9,146.53,146.49,0.063]
[1745904510924,11.48656728,146.51,146.49,0.063]
[1745904511632,11.48656728,146.52,146.49,0.063]
[1745904512606,11.48656728,146.51,146.49,0.063]
[1745904513102,94.38656728,146.53,146.49,11.54956728]
[1745904518535,11.48656728,146.52,146.49,0.063]
[1745904520825,11.48656728,146.5,146.49,0.063]
[1745904521408,11.48656728,146.52,146.49,0.063]
[1745904525140,82.9,146.53,146.49,0.063]
[1745904525439,11.48656728,146.52,146.49,0.063]
[1745904526036,82.9,146.53,146.49,0.063]
[1745904526212,11.48656728,146.52,146.49,0.063]
[1745904532145,82.9,146.53,146.49,11.54956728]
[1745904532442,94.38656728,146.56,146.52,11.48656728]
[1745904532664,11.48656728,146.54,146.5,11.48656728]
[1745904533313,11.48656728,146.54,146.49,6.3056]
[1745904533514,11.48656728,146.53,146.49,17.79216728]
[1745904533742,11.48656728,146.52,146.49,0.063]
[1745904535645,11.48656728,146.51,146.49,0.063]
[1745904536152,11.48656728,146.5,146.49,0.063]
[1745904537549,11.48656728,146.51,146.49,0.063]
[1745904538552,11.48656728,146.5,146.49,0.063]
[1745904539626,11.48656728,146.51,146.49,0.063]
[1745904540659,11.48656728,146.52,146.49,0.063]
[1745904541451,11.48656728,146.51,146.49,0.063]
[1745904543325,82.9,146.54,146.49,0.063]
[1745904543546,11.48656728,146.52,146.49,0.063]
[1745904544441,11.48656728,146.51,146.49,0.063]
[1745904548828,82.9,146.53,146.49,11.54956728]
[1745904549034,94.38656728,146.53,146.49,11.54956728]
[1745904549236,82.9,146.53,146.49,11.54956728]
[1745904549451,94.38656728,146.53,146.49,11.54956728]
[1745904551755,11.48656728,146.53,146.49,11.54956728]
[1745904551956,11.48656728,146.54,146.5,11.48656728]
[1745904552655,11.48656728,146.55,146.51,11.48656728]
[1745904553555,82.9,146.56,146.49,6.20673035]
[1745904553556,11.48656728,146.54,146.5,11.48656728]
[1745904553943,11.48656728,146.54,146.5,17.62957112]
[1745904554449,11.48656728,146.55,146.51,11.48656728]
[1745904555337,11.48656728,146.56,146.52,11.48656728]
[1745904555631,94.41656728,146.58,146.54,11.48656728]
[1745904559962,11.48656728,146.57,146.53,11.48656728]
[1745904563558,11.48656728,146.56,146.52,17.62905141]
[1745904563737,82.93,146.58,146.51,13.56]
[1745904563738,11.48656728,146.53,146.51,13.56]
[1745904564250,11.48656728,146.54,146.51,13.56]
[1745904567141,11.48656728,146.54,146.49,6.20660516]
[1745904567142,11.48656728,146.53,146.49,0.063]
[1745904567343,11.48656728,146.5,146.49,0.063]
[1745904567661,82.9,146.55,146.49,0.063]
[1745904567853,11.48656728,146.51,146.49,0.063]
[1745904568664,82.9,146.55,146.49,0.063]
[1745904568665,11.48656728,146.52,146.49,0.063]
[1745904568967,11.48656728,146.53,146.49,11.54956728]
[1745904569174,11.48656728,146.54,146.5,11.48656728]
[1745904569351,11.48656728,146.55,146.51,11.48656728]
[1745904569548,11.48656728,146.56,146.52,11.48656728]
[1745904569801,11.48656728,146.57,146.53,11.48656728]
[1745904570563,11.48656728,146.56,146.5,24.79299356]
[1745904570861,11.48656728,146.56,146.52,11.48656728]
[1745904572299,11.48656728,146.55,146.51,11.48656728]
[1745904572450,11.48656728,146.54,146.5,11.48656728]
[1745904572642,11.48656728,146.53,146.49,112.12276728]
[1745904572847,11.48656728,146.53,146.49,25.10956728]
[1745904573077,11.48656728,146.54,146.5,11.48656728]
[1745904578575,11.48656728,146.53,146.49,11.54956728]
[1745904579575,11.48656728,146.53,146.49,17.69330943]
[1745904581284,11.48656728,146.54,146.5,11.48656728]
[1745904586583,11.48656728,146.55,146.51,11.48656728]
[1745904587283,11.48656728,146.54,146.5,11.48656728]
[1745904588664,11.48656728,146.53,146.49,11.54956728]
[1745904588858,11.48656728,146.53,146.49,0.063]
[1745904589166,11.48656728,146.51,146.49,0.063]
[1745904589777,11.48656728,146.52,146.49,0.063]
[1745904589977,11.48656728,146.5,146.49,0.063]
[1745904590171,11.48656728,146.51,146.49,0.063]
[1745904591389,11.48656728,146.52,146.49,0.063]
[1745904593887,11.48656728,146.53,146.49,11.54956728]
[1745904594074,11.48656728,146.54,146.5,11.48656728]
[1745904595080,11.48656728,146.54,146.5,17.62971387]
[1745904597501,1.5138,146.55,146.5,17.62971387]
[1745904597795,11.48656728,146.55,146.51,11.48656728]
[1745904600610,11.48656728,146.53,146.49,11.54956728]
[1745904600777,11.48656728,146.52,146.49,0.063]
[1745904602713,11.48656728,146.53,146.49,11.54956728]
[1745904602889,11.48656728,146.54,146.5,11.48656728]
[1745904603287,11.48656728,146.55,146.51,11.48656728]
[1745904603712,11.48656728,146.56,146.52,11.48656728]
[1745904604601,11.48656728,146.55,146.49,88.61631271]
[1745904604783,11.48656728,146.55,146.51,11.48656728]
[1745904606593,11.48656728,146.54,146.5,11.48656728]
[1745904606798,11.48656728,146.53,146.49,11.54956728]
[1745904607181,11.48656728,146.53,146.49,0.063]
[1745904607805,11.48656728,146.53,146.49,11.54956728]
[1745904608011,11.48656728,146.54,146.5,11.48656728]
[1745904609409,11.48656728,146.53,146.49,11.54956728]
[1745904610710,11.48656728,146.52,146.49,0.063]
[1745904611009,11.48656728,146.51,146.49,0.063]
[1745904614606,11.48656728,146.5,146.49,0.063]
[1745904615514,84.5048,146.54,146.49,0.063]
[1745904615692,11.48656728,146.52,146.49,0.063]
[1745904615898,11.48656728,146.53,146.49,11.54956728]
[1745904616095,13.09136728,146.54,146.49,11.54956728]
[1745904616315,11.48656728,146.53,146.49,11.54956728]
[1745904617425,11.48656728,146.52,146.49,0.063]
[1745904618530,11.48656728,146.53,146.49,11.54956728]
[1745904618829,11.48656728,146.53,146.49,0.063]
[1745904619033,11.48656728,146.53,146.49,11.54956728]
[1745904620640,11.48656728,146.52,146.49,0.063]
[1745904621613,11.48656728,146.53,146.49,11.54956728]
[1745904621937,82.9,146.56,146.5,11.48656728]
[1745904621938,11.48656728,146.54,146.5,11.48656728]
[1745904623527,11.48656728,146.54,146.49,6.20675773]
[1745904623829,11.48656728,146.54,146.5,11.48656728]
[1745904624122,11.48656728,146.53,146.49,11.54956728]
[1745904625027,11.48656728,146.53,146.49,0.063]
[1745904625206,11.48656728,146.53,146.49,11.54956728]
[1745904626634,11.48656728,146.54,146.5,11.48656728]
[1745904626815,84.5859,146.58,146.52,11.48656728]
[1745904627006,11.48656728,146.57,146.53,11.48656728]
[1745904629820,11.48656728,146.56,146.53,11.48656728]
[1745904630745,11.48656728,146.56,146.52,11.48656728]
[1745904634830,84.5859,146.58,146.53,11.48656728]
[1745904635155,0.03,146.58,146.56,11.48656728]
[1745904636040,0.03,146.58,146.55,11.48656728]
[1745904636342,0.03,146.58,146.56,11.48656728]
[1745904636726,0.03,146.58,146.55,17.62773609]
[1745904643447,0.03,146.58,146.56,11.48656728]
[1745904645345,0.03,146.58,146.56,17.62736125]
[1745904645656,0.03,146.58,146.57,11.48656728]
[1745904645851,0.03,146.58,146.57,31.50035624]
[1745904646031,0.03,146.58,146.57,42.98692352]
[1745904646234,0.03,146.58,146.57,31.50035624]
[1745904646432,0.03,146.58,146.57,125.49492352]
[1745904647355,0.03,146.58,146.57,114.00835624]
[1745904647851,0.03,146.68,146.65,22.60024886]
[1745904648058,0.03,146.7,146.68,18.64964886]
[1745904648228,0.03,146.7,146.69,11.48656728]
[1745904649052,0.03,146.7,146.69,31.49923923]
[1745904649750,0.03,146.7,146.69,37.63462678]
[1745904650360,0.03,146.7,146.69,24.78503641]
[1745904650562,0.03,146.7,146.69,36.27160369]
[1745904650868,7.9481,146.81,146.69,52.97302065]
[1745904651055,11.48656728,146.78,146.73,11.48656728]
[1745904651256,11.48656728,146.78,146.73,25.02656728]
[1745904652061,11.48656728,146.78,146.74,6.13329698]
[1745904652432,11.48656728,146.77,146.73,6.13358944]
[1745904652638,11.48656728,146.76,146.73,6.13358944]
[1745904653139,11.48656728,146.77,146.73,6.13358944]
[1745904653342,11.48656728,146.77,146.73,17.62015672]
[1745904653774,11.48656728,146.76,146.69,33.98811773]
[1745904653956,11.48656728,146.77,146.73,11.48656728]
[1745904654149,82.9,146.78,146.75,11.48656728]
[1745904655073,94.38656728,146.78,146.74,11.48656728]
[1745904656269,94.38656728,146.78,146.74,17.61977291]
[1745904657075,82.9,146.78,146.75,11.48656728]
[1745904659753,82.9,146.78,146.75,17.61941183]
[1745904660474,82.9,146.78,146.74,11.48656728]
[1745904660861,82.9,146.78,146.75,11.48656728]
[1745904661674,11.48656728,146.77,146.71,21.47092903]
[1745904661866,11.48656728,146.77,146.73,11.48656728]
[1745904662067,94.38656728,146.78,146.74,11.48656728]
[1745904662374,84.38656728,146.78,146.74,11.48656728]
[1745904662969,84.38656728,146.78,146.74,17.61972362]
[1745904664558,11.48656728,146.77,146.73,11.48656728]
[1745904664760,11.48656728,146.75,146.71,17.62111843]
[1745904667482,11.48656728,146.76,146.71,17.62111843]
[1745904668379,11.48656728,146.74,146.7,19.67495858]
[1745904668579,11.48656728,146.75,146.7,17.62152586]
[1745904669489,11.48656728,146.76,146.71,11.48656728]
[1745904669789,11.48656728,146.76,146.72,11.48656728]
[1745904670986,11.48656728,146.77,146.73,11.48656728]
[1745904673087,72.9,146.78,146.74,11.48656728]
[1745904673390,84.38656728,146.78,146.74,11.48656728]
[1745904673762,72.9,146.8,146.74,11.48656728]
[1745904674081,11.48656728,146.78,146.74,11.48656728]
[1745904674594,11.48656728,146.77,146.73,17.62019576]
[1745904674770,11.48656728,146.76,146.72,25.02656728]
[1745904674976,11.48656728,146.75,146.72,13.54]
[1745904676389,11.48656728,146.76,146.72,25.02656728]
[1745904678771,11.48656728,146.75,146.72,13.54]
[1745904680401,11.48656728,146.76,146.72,25.02656728]
[1745904680799,11.48656728,146.77,146.73,11.48656728]
[1745904681801,72.9,146.78,146.73,11.48656728]
[1745904681973,72.9,146.78,146.74,11.48656728]
[1745904682168,84.38656728,146.78,146.74,11.48656728]
[1745904684001,11.48656728,146.77,146.73,11.48656728]
[1745904684991,11.48656728,146.77,146.73,10.98656728]
[1745904685183,11.48656728,146.75,146.72,13.54]
[1745904685887,11.48656728,146.75,146.71,11.48656728]
[1745904686699,11.48656728,146.75,146.69,19.65531299]
[1745904686903,11.48656728,146.75,146.71,11.48656728]
[1745904688611,72.9,146.77,146.73,11.48656728]
[1745904688894,84.38656728,146.77,146.73,11.48656728]
[1745904689395,72.9,146.77,146.73,11.48656728]
[1745904689902,72.9,146.77,146.74,11.48656728]
[1745904690904,72.9,146.77,146.73,11.48656728]
[1745904691596,84.38656728,146.77,146.73,11.48656728]
[1745904693392,84.38656728,146.77,146.72,11.48656728]
[1745904694491,84.38656728,146.77,146.73,11.48656728]
[1745904695814,84.38656728,146.77,146.71,13.52]
[1745904695815,11.48656728,146.76,146.72,11.48656728]
[1745904696713,84.38656728,146.77,146.73,11.48656728]
[1745904698206,84.38656728,146.77,146.72,11.48656728]
[1745904699103,11.48656728,146.76,146.72,11.48656728]
[1745904702699,84.38656728,146.77,146.72,11.48656728]
[1745904704304,72.9,146.77,146.74,11.48656728]
[1745904704805,84.38656728,146.77,146.73,11.48656728]
[1745904707235,72.9,146.77,146.73,11.48656728]
[1745904707525,84.38656728,146.77,146.73,11.48656728]
[1745904708017,84.38656728,146.77,146.72,11.48656728]
[1745904708018,11.48656728,146.76,146.72,11.48656728]
[1745904708327,11.48656728,146.75,146.71,25.00656728]
[1745904709529,11.48656728,146.76,146.71,25.00656728]
[1745904709831,11.48656728,146.76,146.72,11.48656728]
[1745904710330,11.48656728,146.76,146.71,25.00656728]
[1745904710930,11.48656728,146.76,146.72,11.48656728]
[1745904712922,72.9,146.77,146.73,11.48656728]
[1745904713129,84.38656728,146.77,146.73,11.48656728]
[1745904715121,84.38656728,146.77,146.72,11.48656728]
[1745904715316,11.48656728,146.76,146.72,11.48656728]
[1745904715636,11.48656728,146.76,146.71,25.00656728]
[1745904716458,11.48656728,146.73,146.67,0.063]
[1745904716747,11.48656728,146.73,146.68,25.00656728]
[1745904717121,13.14336728,146.75,146.7,11.48656728]
[1745904717621,72.9,146.76,146.68,13.52]
[1745904717622,72.9,146.76,146.72,11.48656728]
[1745904718651,11.48656728,146.77,146.72,11.48656728]
[1745904718944,11.48656728,146.77,146.72,17.62062188]
[1745904720956,11.48656728,146.77,146.71,13.52]
[1745904720957,11.48656728,146.75,146.71,25.00656728]
[1745904721166,11.48656728,146.75,146.71,13.52]
[1745904721352,11.48656728,146.75,146.71,25.00656728]
[1745904722962,11.48656728,146.76,146.71,25.00656728]
[1745904723157,11.48656728,146.76,146.71,31.14105388]
[1745904724160,11.48656728,146.76,146.71,25.00656728]
[1745904724362,11.48656728,146.75,146.71,25.00656728]
[1745904725557,11.48656728,146.76,146.72,11.48656728]
[1745904726162,11.48656728,146.76,146.71,25.00656728]
[1745904733370,11.48656728,146.77,146.73,11.48656728]
[1745904733551,84.38656728,146.78,146.73,11.48656728]
[1745904735767,72.9,146.78,146.74,11.48656728]
[1745904735969,84.38656728,146.78,146.74,11.48656728]
[1745904736343,84.38656728,146.78,146.73,11.48656728]
[1745904738790,11.48656728,146.77,146.73,11.48656728]
[1745904739077,11.48656728,146.77,146.72,11.48656728]
[1745904740274,11.48656728,146.77,146.71,19.65439172]
[1745904740446,11.48656728,146.77,146.72,11.48656728]
[1745904744181,11.48656728,146.76,146.72,11.48656728]
[1745904744889,11.48656728,146.77,146.72,11.48656728]
[1745904745689,11.48656728,146.77,146.72,17.62064271]
[1745904746072,11.48656728,146.77,146.72,11.48656728]
[1745904748292,72.9,146.8,146.75,11.48656728]
[1745904748470,13.11836728,146.83,146.78,11.48656728]
[1745904748670,11.48656728,146.82,146.78,11.48656728]
[1745904750390,11.48656728,146.8,146.76,25.00656728]
[1745904750710,11.48656728,146.78,146.76,13.52]
[1745904750999,11.48656728,146.77,146.76,13.52]
[1745904751200,11.48656728,146.77,146.7,82.5251]
[1745904751500,11.48656728,146.74,146.71,13.52]
[1745904751869,11.48656728,146.75,146.71,13.52]
[1745904752072,11.48656728,146.74,146.71,13.52]
[1745904752767,11.48656728,146.72,146.68,6.3682]
[1745904752972,11.48656728,146.72,146.67,82.5319]
[1745904752973,11.48656728,146.71,146.67,105.96956728]
[1745904753280,11.48656728,146.71,146.67,25.06956728]
[1745904753804,11.48656728,146.71,146.67,31.20577522]
[1745904755802,11.48656728,146.72,146.67,31.20577522]
[1745904755974,72.9,146.77,146.69,11.48656728]
[1745904756300,84.38656728,146.76,146.72,11.48656728]
[1745904756487,11.48656728,146.75,146.71,11.48656728]
[1745904756889,11.48656728,146.74,146.69,11.48656728]
[1745904757196,11.48656728,146.73,146.68,92.38656728]
[1745904758079,11.48656728,146.73,146.69,11.48656728]
[1745904758899,11.48656728,146.74,146.7,11.48656728]
[1745904759077,11.48656728,146.75,146.71,11.48656728]
[1745904759394,11.48656728,146.76,146.72,11.48656728]
[1745904760180,72.9,146.77,146.73,11.48656728]
[1745904760181,84.38656728,146.77,146.73,11.48656728]
[1745904760379,11.48656728,146.8,146.76,11.48656728]
[1745904760584,11.48656728,146.81,146.77,11.48656728]
[1745904761690,74.4179,146.82,146.73,33.53218454]
[1745904761691,11.51656728,146.83,146.79,11.48656728]
[1745904762076,11.48656728,146.82,146.78,11.48656728]
[1745904763213,0.03,146.83,146.79,11.48656728]
[1745904763385,11.51656728,146.83,146.79,11.48656728]
[1745904764799,11.48656728,146.82,146.78,11.48656728]
[1745904766211,11.51656728,146.83,146.79,11.48656728]
[1745904766711,0.03,146.83,146.79,11.48656728]
[1745904768711,0.03,146.83,146.8,11.48656728]
[1745904769015,11.48656728,146.82,146.77,6.13204333]
[1745904769191,11.48656728,146.82,146.78,11.48656728]
[1745904770109,11.48656728,146.81,146.76,11.48656728]
[1745904771112,11.48656728,146.81,146.77,11.48656728]
[1745904772513,11.48656728,146.82,146.78,11.48656728]
[1745904773094,72.93,146.83,146.79,11.48656728]
[1745904773301,84.41656728,146.83,146.79,11.48656728]
[1745904773593,72.93,146.83,146.8,11.48656728]
[1745904773995,84.41656728,146.83,146.77,24.78138958]
[1745904774290,84.41656728,146.83,146.79,11.48656728]
[1745904775517,11.51656728,146.83,146.79,11.48656728]
[1745904777514,11.51656728,146.83,146.79,17.61773753]
[1745904777714,11.51656728,146.83,146.79,11.48656728]
[1745904778513,11.51656728,146.83,146.79,17.61765676]
[1745904778806,0.03,146.83,146.8,11.48656728]
[1745904779214,0.03,146.83,146.79,17.61765676]
[1745904779408,0.03,146.83,146.8,11.48656728]
[1745904780010,0.03,146.83,146.82,11.48656728]
[1745904782025,0.03,146.83,146.82,17.61652232]
[1745904783501,0.03,146.83,146.79,80.9]
[1745904783835,0.03,146.83,146.82,11.48656728]
[1745904784214,0.03,146.83,146.79,82.26209962]
[1745904784400,11.48656728,146.82,146.78,13.5]
[1745904784820,11.48656728,146.8,146.78,13.5]
[1745904785012,72.93,146.83,146.78,13.5]
[1745904785423,11.48656728,146.81,146.78,13.5]
[1745904786830,11.48656728,146.8,146.78,13.5]
[1745904787205,11.48656728,146.81,146.78,13.5]
[1745904788131,72.93,146.83,146.78,13.5]
[1745904788427,11.48656728,146.81,146.78,13.5]
[1745904788923,72.93,146.83,146.8,11.48656728]
[1745904789704,72.93,146.83,146.81,11.48656728]
[1745904789917,0.03,146.83,146.81,11.48656728]
[1745904790830,0.03,146.83,146.81,17.6168015]
[1745904791430,0.03,146.83,146.82,11.48656728]